[Event "*** Titled Tuesday Blitz"]
[Site "Chess.com"]
[Date "2021.02.16"]
[Round "2"]
[White "goldihouse"]
[Black "LuisFSiles"]
[Result "1-0"]
[WhiteElo "2532"]
[BlackElo "2311"]
[TimeControl "180+1"]
[EndTime "10:19:05 PST"]
[Termination "goldihouse won by resignation"]

1. c4 {[%clk 0:03:00.9]} 1... Nf6 {[%clk 0:02:58.1]} 2. g3 {[%clk 0:03:01.8]}
2... g6 {[%clk 0:02:57.4]} 3. Bg2 {[%clk 0:03:02.7]} 3... Bg7 {[%clk 0:02:57.2]}
4. Nc3 {[%clk 0:03:03.6]} 4... O-O {[%clk 0:02:56.4]} 5. e4 {[%clk 0:03:04.2]}
5... d6 {[%clk 0:02:55.8]} 6. Nge2 {[%clk 0:03:04.6]} 6... c5 {[%clk 0:02:55.3]}
7. O-O {[%clk 0:03:04.8]} 7... Nc6 {[%clk 0:02:55]} 8. a3 {[%clk 0:03:05.3]}
8... Bg4 {[%clk 0:02:41.7]} 9. h3 {[%clk 0:03:05]} 9... Bxe2 {[%clk 0:02:39.2]}
10. Nxe2 {[%clk 0:03:05.9]} 10... Ne8 {[%clk 0:02:37.2]} 11. Rb1 {[%clk
0:03:05.6]} 11... a5 {[%clk 0:02:24.2]} 12. Nc3 {[%clk 0:03:05.6]} 12... Nc7
{[%clk 0:02:21.6]} 13. d3 {[%clk 0:03:05.8]} 13... Ne6 {[%clk 0:02:14.6]} 14.
Bd2 {[%clk 0:03:00.6]} 14... Ned4 {[%clk 0:02:13.4]} 15. Kh2 {[%clk 0:02:59.4]}
15... e6 {[%clk 0:02:12.4]} 16. f4 {[%clk 0:02:56.5]} 16... f5 {[%clk
0:02:10.6]} 17. Qa4 {[%clk 0:02:53.6]} 17... Rb8 {[%clk 0:01:37.2]} 18. Rbe1
{[%clk 0:02:50.8]} 18... Qd7 {[%clk 0:01:29.5]} 19. Nb5 {[%clk 0:02:49]} 19...
Nxb5 {[%clk 0:01:24.6]} 20. Qxb5 {[%clk 0:02:49.9]} 20... Rf7 {[%clk 0:01:15.8]}
21. Bc3 {[%clk 0:02:30.9]} 21... Rc8 {[%clk 0:01:15.4]} 22. Qb6 {[%clk
0:02:14.5]} 22... a4 {[%clk 0:01:10.1]} 23. Re2 {[%clk 0:02:00.1]} 23... Nd4
{[%clk 0:01:10.1]} 24. Bxd4 {[%clk 0:01:59.4]} 24... Bxd4 {[%clk 0:01:11]} 25.
exf5 {[%clk 0:01:59]} 25... gxf5 {[%clk 0:01:09.7]} 26. Rfe1 {[%clk 0:01:59.6]}
26... e5 {[%clk 0:01:05.6]} 27. Bd5 {[%clk 0:01:56.2]} 27... Rf8 {[%clk
0:01:05]} 28. fxe5 {[%clk 0:00:42.5]} 28... dxe5 {[%clk 0:00:54.7]} 29. Rxe5
{[%clk 0:00:42]} 29... Bxe5 {[%clk 0:00:50.1]} 30. Rxe5 {[%clk 0:00:42.9]} 30...
Kh8 {[%clk 0:00:50.2]} 31. Bxf7 {[%clk 0:00:38.4]} 31... Qxf7 {[%clk 0:00:50.4]}
32. Qxc5 {[%clk 0:00:28.5]} 32... f4 {[%clk 0:00:50.6]} 33. g4 {[%clk 0:00:29]}
33... f3 {[%clk 0:00:50.6]} 34. Qd4 {[%clk 0:00:28.4]} 34... Qg7 {[%clk
0:00:46]} 35. Kg1 {[%clk 0:00:23.6]} 35... f2+ {[%clk 0:00:46]} 36. Kf1 {[%clk
0:00:23.9]} 36... Qf6 {[%clk 0:00:45.3]} 37. Re4 {[%clk 0:00:23.1]} 37... Kg8
{[%clk 0:00:43.9]} 38. Qxf6 {[%clk 0:00:22.7]} 38... Rxf6 {[%clk 0:00:43.6]} 39.
d4 {[%clk 0:00:22.5]} 39... Rb6 {[%clk 0:00:42.8]} 40. Re2 {[%clk 0:00:21.9]}
40... Rb3 {[%clk 0:00:43.4]} 41. Kxf2 {[%clk 0:00:21.4]} 41... Rxh3 {[%clk
0:00:43.4]} 42. d5 {[%clk 0:00:21.9]} 42... Rd3 {[%clk 0:00:43.2]} 43. Re7
{[%clk 0:00:21.4]} 43... Rd2+ {[%clk 0:00:43.1]} 44. Ke3 {[%clk 0:00:21.8]}
44... Rxb2 {[%clk 0:00:44]} 45. d6 {[%clk 0:00:22.4]} 45... Rb3+ {[%clk
0:00:44.6]} 46. Kd4 {[%clk 0:00:22.3]} 46... Kf8 {[%clk 0:00:45.5]} 47. Rc7
{[%clk 0:00:22]} 47... Ke8 {[%clk 0:00:44.4]} 48. Kd5 {[%clk 0:00:22.3]} 48...
Rd3+ {[%clk 0:00:43.4]} 49. Kc5 {[%clk 0:00:22.8]} 49... Rxa3 {[%clk 0:00:42.8]}
50. Rxb7 {[%clk 0:00:23.2]} 50... Rb3 {[%clk 0:00:43.1]} 51. Ra7 {[%clk
0:00:23]} 51... a3 {[%clk 0:00:42.2]} 52. Kc6 {[%clk 0:00:23.3]} 52... Rd3
{[%clk 0:00:41]} 53. c5 {[%clk 0:00:23.5]} 53... Rc3 {[%clk 0:00:40.3]} 54. Ra8+
{[%clk 0:00:23.3]} 54... Kf7 {[%clk 0:00:39.3]} 55. d7 {[%clk 0:00:24.2]} 1-0

[Event "*** Titled Tuesday Blitz"]
[Site "Chess.com"]
[Date "2021.02.16"]
[Round "2"]
[White "FMJoseHerrera"]
[Black "NikolaMa2000"]
[Result "1-0"]
[WhiteElo "2602"]
[BlackElo "1922"]
[TimeControl "180+1"]
[EndTime "10:19:09 PST"]
[Termination "FMJoseHerrera won by resignation"]

1. Nf3 {[%clk 0:03:00.9]} 1... d5 {[%clk 0:02:59.2]} 2. g3 {[%clk 0:02:58.3]}
2... Nf6 {[%clk 0:02:59]} 3. Bg2 {[%clk 0:02:58]} 3... e6 {[%clk 0:02:59.5]} 4.
O-O {[%clk 0:02:57.4]} 4... c5 {[%clk 0:03:00]} 5. d3 {[%clk 0:02:57.8]} 5...
Be7 {[%clk 0:03:00.4]} 6. c4 {[%clk 0:02:57.4]} 6... O-O {[%clk 0:02:51.6]} 7.
b3 {[%clk 0:02:54.3]} 7... Nc6 {[%clk 0:02:50.5]} 8. Bb2 {[%clk 0:02:53.5]} 8...
d4 {[%clk 0:02:45.8]} 9. e3 {[%clk 0:02:51.3]} 9... e5 {[%clk 0:02:45.8]} 10.
Re1 {[%clk 0:02:43.8]} 10... Bg4 {[%clk 0:02:37.2]} 11. exd4 {[%clk 0:02:28.3]}
11... cxd4 {[%clk 0:02:33.3]} 12. Nbd2 {[%clk 0:02:23.5]} 12... Qc7 {[%clk
0:02:29.5]} 13. a3 {[%clk 0:02:21.4]} 13... a5 {[%clk 0:02:28.3]} 14. Qc2 {[%clk
0:02:20.2]} 14... Nd7 {[%clk 0:02:26.6]} 15. Nxd4 {[%clk 0:01:47.8]} 15... exd4
{[%clk 0:02:04.1]} 16. Bxc6 {[%clk 0:01:47.3]} 16... Qxc6 {[%clk 0:01:48.3]} 17.
Rxe7 {[%clk 0:01:46.5]} 17... Bh3 {[%clk 0:01:43.3]} 18. f3 {[%clk 0:01:45.6]}
18... Rae8 {[%clk 0:01:34.3]} 19. Rae1 {[%clk 0:01:44.5]} 19... Rxe7 {[%clk
0:01:29.2]} 20. Rxe7 {[%clk 0:01:44]} 20... Qd6 {[%clk 0:01:29.5]} 21. Re4
{[%clk 0:01:35.6]} 21... Ne5 {[%clk 0:01:18.5]} 22. Bxd4 {[%clk 0:01:30.2]}
22... Nc6 {[%clk 0:01:11.7]} 23. Bb2 {[%clk 0:01:03.2]} 23... f5 {[%clk
0:01:10.5]} 24. Qc3 {[%clk 0:00:57.8]} 24... Qg6 {[%clk 0:00:57.7]} 25. Re6
{[%clk 0:00:51.9]} 25... Qf7 {[%clk 0:00:42]} 26. Nf1 {[%clk 0:00:45.2]} 26...
f4 {[%clk 0:00:41.5]} 27. g4 {[%clk 0:00:45.6]} 27... Rd8 {[%clk 0:00:29.8]} 28.
Re4 {[%clk 0:00:35]} 28... h5 {[%clk 0:00:25.7]} 29. Rxf4 {[%clk 0:00:25]} 29...
Qe7 {[%clk 0:00:23.7]} 30. Re4 {[%clk 0:00:25.2]} 30... Qc5+ {[%clk 0:00:21.2]}
31. d4 {[%clk 0:00:24.4]} 31... Qg5 {[%clk 0:00:15.6]} 32. Ng3 {[%clk
0:00:18.5]} 32... hxg4 {[%clk 0:00:14.9]} 33. fxg4 {[%clk 0:00:18.2]} 33... Bxg4
{[%clk 0:00:13.4]} 34. d5 {[%clk 0:00:18]} 34... Nb8 {[%clk 0:00:09.3]} 35. Qe3
{[%clk 0:00:16.3]} 35... Nd7 {[%clk 0:00:05.6]} 36. Qxg5 {[%clk 0:00:15.7]} 1-0

[Event "*** Titled Tuesday Blitz"]
[Site "Chess.com"]
[Date "2021.02.16"]
[Round "2"]
[White "NovikovaGalina"]
[Black "MIJuanReyesRosa"]
[Result "1-0"]
[WhiteElo "2413"]
[BlackElo "2124"]
[TimeControl "180+1"]
[EndTime "10:19:09 PST"]
[Termination "NovikovaGalina won on time"]

1. e4 {[%clk 0:03:00.9]} 1... c5 {[%clk 0:02:58.1]} 2. Nf3 {[%clk 0:03:00.7]}
2... e6 {[%clk 0:02:57.7]} 3. d4 {[%clk 0:03:01.2]} 3... cxd4 {[%clk 0:02:57.8]}
4. Nxd4 {[%clk 0:03:02.1]} 4... a6 {[%clk 0:02:58.2]} 5. Nc3 {[%clk 0:03:02.5]}
5... Qc7 {[%clk 0:02:58.1]} 6. Be2 {[%clk 0:03:02.8]} 6... Nf6 {[%clk
0:02:57.5]} 7. O-O {[%clk 0:03:03.2]} 7... d6 {[%clk 0:02:57.7]} 8. Be3 {[%clk
0:03:01.3]} 8... b5 {[%clk 0:02:57.5]} 9. Kh1 {[%clk 0:02:19.4]} 9... Bb7 {[%clk
0:02:56.7]} 10. Bf3 {[%clk 0:02:18.7]} 10... Nbd7 {[%clk 0:02:52.9]} 11. a3
{[%clk 0:02:14.1]} 11... Be7 {[%clk 0:02:52.1]} 12. g3 {[%clk 0:02:13.1]} 12...
O-O {[%clk 0:02:51.5]} 13. Bg2 {[%clk 0:02:13.6]} 13... Ne5 {[%clk 0:02:43.6]}
14. f4 {[%clk 0:02:07]} 14... Nc4 {[%clk 0:02:38.1]} 15. Bc1 {[%clk 0:02:07.4]}
15... Rac8 {[%clk 0:02:35]} 16. g4 {[%clk 0:02:00]} 16... Nd7 {[%clk 0:02:30.9]}
17. f5 {[%clk 0:01:47]} 17... e5 {[%clk 0:02:11.4]} 18. Nb3 {[%clk 0:01:44.9]}
18... Ndb6 {[%clk 0:02:06.7]} 19. f6 {[%clk 0:01:33.2]} 19... Bxf6 {[%clk
0:01:58.4]} 20. Rxf6 {[%clk 0:01:33.4]} 20... gxf6 {[%clk 0:01:58.4]} 21. Bh6
{[%clk 0:01:33.9]} 21... Rfd8 {[%clk 0:01:49.3]} 22. Qf1 {[%clk 0:01:33.8]}
22... Qe7 {[%clk 0:01:36.6]} 23. Ne2 {[%clk 0:01:33.4]} 23... Nxb2 {[%clk
0:01:21.9]} 24. Ng3 {[%clk 0:01:33.1]} 24... Rxc2 {[%clk 0:01:14.5]} 25. Nf5
{[%clk 0:01:33.3]} 25... Qe6 {[%clk 0:01:02.3]} 26. Na5 {[%clk 0:01:14.5]} 26...
Ba8 {[%clk 0:00:51]} 27. Bf3 {[%clk 0:01:12.7]} 27... d5 {[%clk 0:00:31.8]} 28.
g5 {[%clk 0:01:01.3]} 28... fxg5 {[%clk 0:00:23]} 29. Bg4 {[%clk 0:00:54.4]}
29... dxe4 {[%clk 0:00:18.9]} 30. Bxg5 {[%clk 0:00:47.4]} 30... e3+ {[%clk
0:00:17]} 31. Kg1 {[%clk 0:00:46.3]} 31... e2 {[%clk 0:00:08.8]} 32. Bxe2 {[%clk
0:00:37.4]} 32... Rxe2 {[%clk 0:00:02.2]} 33. Nh6+ {[%clk 0:00:34.4]} 33... Kf8
{[%clk 0:00:01]} 34. Qxe2 {[%clk 0:00:26.9]} 1-0

[Event "*** Titled Tuesday Blitz"]
[Site "Chess.com"]
[Date "2021.02.16"]
[Round "2"]
[White "TimofeevAr"]
[Black "PavelChernomordik"]
[Result "1-0"]
[WhiteElo "2874"]
[BlackElo "2368"]
[TimeControl "180+1"]
[EndTime "10:19:11 PST"]
[Termination "TimofeevAr won by resignation"]

1. c4 {[%clk 0:03:00.9]} 1... g6 {[%clk 0:02:59.2]} 2. Nc3 {[%clk 0:03:00]} 2...
Bg7 {[%clk 0:02:59.4]} 3. g3 {[%clk 0:03:00.1]} 3... e5 {[%clk 0:02:58.9]} 4.
Bg2 {[%clk 0:03:00.1]} 4... Nc6 {[%clk 0:02:59.7]} 5. d3 {[%clk 0:02:58.6]} 5...
d6 {[%clk 0:02:59.9]} 6. Nf3 {[%clk 0:02:58.1]} 6... h6 {[%clk 0:02:59.4]} 7.
O-O {[%clk 0:02:57.4]} 7... Be6 {[%clk 0:02:58.8]} 8. Rb1 {[%clk 0:02:54]} 8...
Qd7 {[%clk 0:02:58.2]} 9. Re1 {[%clk 0:02:53.8]} 9... Bh3 {[%clk 0:02:56.2]} 10.
Bh1 {[%clk 0:02:53.8]} 10... Nf6 {[%clk 0:02:55.6]} 11. b4 {[%clk 0:02:52.9]}
11... Ng4 {[%clk 0:02:53.9]} 12. b5 {[%clk 0:02:49.6]} 12... Nd8 {[%clk
0:02:53.3]} 13. d4 {[%clk 0:02:41.5]} 13... exd4 {[%clk 0:02:37.3]} 14. Nxd4
{[%clk 0:02:41]} 14... Ne5 {[%clk 0:02:34.9]} 15. Nd5 {[%clk 0:02:25]} 15... c6
{[%clk 0:02:26.4]} 16. bxc6 {[%clk 0:02:24.2]} 16... bxc6 {[%clk 0:02:25.8]} 17.
Nf4 {[%clk 0:02:23.9]} 17... O-O {[%clk 0:02:12.9]} 18. Nxh3 {[%clk 0:02:22.9]}
18... Qxh3 {[%clk 0:02:11.6]} 19. Bg2 {[%clk 0:02:23.2]} 19... Qd7 {[%clk
0:02:08.3]} 20. Qc2 {[%clk 0:02:19.3]} 20... Ne6 {[%clk 0:02:02.8]} 21. e3
{[%clk 0:02:13.7]} 21... Rfe8 {[%clk 0:01:56.7]} 22. Rd1 {[%clk 0:02:09.9]}
22... Rac8 {[%clk 0:01:46.4]} 23. h3 {[%clk 0:02:04.8]} 23... f5 {[%clk
0:01:38.3]} 24. Ba3 {[%clk 0:01:57.6]} 24... Nf7 {[%clk 0:01:36.8]} 25. Ne2
{[%clk 0:01:49]} 25... Qc7 {[%clk 0:01:31.4]} 26. Qa4 {[%clk 0:01:44.6]} 26...
Nc5 {[%clk 0:01:29.3]} 27. Bxc5 {[%clk 0:01:40.6]} 27... dxc5 {[%clk 0:01:28.7]}
28. Nf4 {[%clk 0:01:40.8]} 28... Ne5 {[%clk 0:01:24.3]} 29. Nd3 {[%clk
0:01:28.3]} 29... Nf7 {[%clk 0:01:15.7]} 30. Nxc5 {[%clk 0:01:26.3]} 30... Nd6
{[%clk 0:01:11.7]} 31. Qc2 {[%clk 0:01:17.5]} 31... Rcd8 {[%clk 0:01:07.1]} 32.
Rb3 {[%clk 0:01:07.8]} 32... Qa5 {[%clk 0:01:02.4]} 33. Nd3 {[%clk 0:01:04.6]}
33... Ne4 {[%clk 0:00:59.6]} 34. Bxe4 {[%clk 0:00:59.1]} 34... fxe4 {[%clk
0:00:56.1]} 35. Nb4 {[%clk 0:00:59]} 35... Rc8 {[%clk 0:00:46]} 36. c5 {[%clk
0:00:57.2]} 36... Bf8 {[%clk 0:00:40.9]} 37. Qc4+ {[%clk 0:00:54.2]} 37... Kh8
{[%clk 0:00:39.3]} 38. Rd7 {[%clk 0:00:52.7]} 38... Rc7 {[%clk 0:00:36.5]} 39.
Ra3 {[%clk 0:00:41.6]} 39... Qxa3 {[%clk 0:00:30.7]} 40. Rxc7 {[%clk 0:00:41.8]}
40... Re7 {[%clk 0:00:24.9]} 41. Rxe7 {[%clk 0:00:34.6]} 41... Bxe7 {[%clk
0:00:24.4]} 42. Nxc6 {[%clk 0:00:32.9]} 42... Qxc5 {[%clk 0:00:22.3]} 43. Qxe4
{[%clk 0:00:32.1]} 43... Bf8 {[%clk 0:00:19.2]} 44. Kg2 {[%clk 0:00:31.7]} 1-0

[Event "*** Titled Tuesday Blitz"]
[Site "Chess.com"]
[Date "2021.02.16"]
[Round "2"]
[White "GelmanAlexander"]
[Black "semchik73"]
[Result "1-0"]
[WhiteElo "2603"]
[BlackElo "2333"]
[TimeControl "180+1"]
[EndTime "10:19:11 PST"]
[Termination "GelmanAlexander won by checkmate"]

1. d4 {[%clk 0:03:00.9]} 1... d5 {[%clk 0:02:59.7]} 2. Nc3 {[%clk 0:03:01.2]}
2... Nf6 {[%clk 0:02:59.1]} 3. Bf4 {[%clk 0:03:01.7]} 3... c6 {[%clk 0:02:59.3]}
4. f3 {[%clk 0:03:01.8]} 4... e6 {[%clk 0:02:53.6]} 5. e4 {[%clk 0:03:01.6]}
5... dxe4 {[%clk 0:02:53.4]} 6. fxe4 {[%clk 0:03:01.6]} 6... Bb4 {[%clk
0:02:51.5]} 7. Qd3 {[%clk 0:03:01.4]} 7... Qa5 {[%clk 0:02:42.6]} 8. Ne2 {[%clk
0:02:52.4]} 8... b6 {[%clk 0:02:34]} 9. e5 {[%clk 0:02:19.4]} 9... Nd5 {[%clk
0:02:33.2]} 10. Bd2 {[%clk 0:02:18.2]} 10... Ba6 {[%clk 0:02:31.3]} 11. Qg3
{[%clk 0:02:16.3]} 11... g6 {[%clk 0:02:15]} 12. a3 {[%clk 0:02:07.3]} 12... Nd7
{[%clk 0:02:09.5]} 13. O-O-O {[%clk 0:01:15]} 13... Bxa3 {[%clk 0:01:35.4]} 14.
bxa3 {[%clk 0:01:00.1]} 14... Qxa3+ {[%clk 0:01:34.9]} 15. Kb1 {[%clk
0:01:00.3]} 15... Nb4 {[%clk 0:01:35.1]} 16. Nc1 {[%clk 0:00:57.6]} 16... Bxf1
{[%clk 0:01:14.1]} 17. Rhxf1 {[%clk 0:00:58.5]} 17... c5 {[%clk 0:01:03.9]} 18.
Ne4 {[%clk 0:00:55]} 18... Qa4 {[%clk 0:01:02.9]} 19. Nd6+ {[%clk 0:00:52.2]}
19... Kd8 {[%clk 0:01:00.9]} 20. Qb3 {[%clk 0:00:42.2]} 20... Qxb3+ {[%clk
0:00:56]} 21. Nxb3 {[%clk 0:00:43.1]} 21... Rf8 {[%clk 0:00:51.7]} 22. Bh6
{[%clk 0:00:36.6]} 22... Kc7 {[%clk 0:00:47.5]} 23. Bxf8 {[%clk 0:00:36.2]}
23... Rxf8 {[%clk 0:00:47.9]} 24. dxc5 {[%clk 0:00:33.7]} 24... Nxe5 {[%clk
0:00:46.7]} 25. cxb6+ {[%clk 0:00:31.4]} 25... axb6 {[%clk 0:00:46.7]} 26. Nb5+
{[%clk 0:00:28.1]} 26... Kc6 {[%clk 0:00:45.2]} 27. N5d4+ {[%clk 0:00:27.2]}
27... Kb7 {[%clk 0:00:44.3]} 28. Nxe6 {[%clk 0:00:27.3]} 28... Ra8 {[%clk
0:00:43.1]} 29. Rde1 {[%clk 0:00:23.9]} 29... Nbc6 {[%clk 0:00:37.8]} 30. Ned4
{[%clk 0:00:23.2]} 30... f5 {[%clk 0:00:35.3]} 31. Nxc6 {[%clk 0:00:22.7]} 31...
Nxc6 {[%clk 0:00:35.7]} 32. Re6 {[%clk 0:00:21.6]} 32... Rd8 {[%clk 0:00:34.4]}
33. Rfe1 {[%clk 0:00:20.8]} 33... Rd5 {[%clk 0:00:34]} 34. Kb2 {[%clk
0:00:20.7]} 34... Rb5 {[%clk 0:00:32.8]} 35. Re8 {[%clk 0:00:19.4]} 35... Rd5
{[%clk 0:00:30.3]} 36. Rh8 {[%clk 0:00:19.3]} 36... h5 {[%clk 0:00:29.7]} 37.
Re6 {[%clk 0:00:18.7]} 37... g5 {[%clk 0:00:27.1]} 38. Rh7+ {[%clk 0:00:18.6]}
38... Ka6 {[%clk 0:00:25.2]} 39. Rxc6 {[%clk 0:00:18.8]} 39... h4 {[%clk
0:00:24.1]} 40. Rhh6 {[%clk 0:00:18.5]} 40... Rb5 {[%clk 0:00:22.9]} 41. c4
{[%clk 0:00:18.4]} 41... Rb4 {[%clk 0:00:22.9]} 42. Kc3 {[%clk 0:00:18.8]} 42...
h3 {[%clk 0:00:20.9]} 43. gxh3 {[%clk 0:00:16.9]} 43... f4 {[%clk 0:00:19.9]}
44. Kxb4 {[%clk 0:00:16.4]} 44... f3 {[%clk 0:00:19.9]} 45. Rxb6+ {[%clk
0:00:16.9]} 45... Ka7 {[%clk 0:00:20.3]} 46. Rbf6 {[%clk 0:00:17.1]} 46... f2
{[%clk 0:00:20.3]} 47. Rh7+ {[%clk 0:00:17.5]} 47... Kb8 {[%clk 0:00:20.4]} 48.
Rf8# {[%clk 0:00:18.4]} 1-0

[Event "*** Titled Tuesday Blitz"]
[Site "Chess.com"]
[Date "2021.02.16"]
[Round "2"]
[White "Danfii"]
[Black "coalescenet"]
[Result "0-1"]
[WhiteElo "2420"]
[BlackElo "2219"]
[TimeControl "180+1"]
[EndTime "10:19:11 PST"]
[Termination "coalescenet won by resignation"]

1. Nf3 {[%clk 0:03:00.9]} 1... d5 {[%clk 0:02:21.3]} 2. g3 {[%clk 0:03:01.8]}
2... Nf6 {[%clk 0:02:21.1]} 3. Bg2 {[%clk 0:03:02.1]} 3... e6 {[%clk 0:02:21.7]}
4. O-O {[%clk 0:03:02.7]} 4... Be7 {[%clk 0:02:22.1]} 5. c4 {[%clk 0:03:03]}
5... O-O {[%clk 0:02:22.8]} 6. b3 {[%clk 0:03:03.4]} 6... a6 {[%clk 0:02:23]} 7.
d3 {[%clk 0:03:03.9]} 7... b6 {[%clk 0:02:23.3]} 8. Bb2 {[%clk 0:03:04.4]} 8...
Bb7 {[%clk 0:02:23.8]} 9. Nc3 {[%clk 0:03:04.8]} 9... Nbd7 {[%clk 0:02:22.1]}
10. Qc2 {[%clk 0:03:05.1]} 10... Ra7 {[%clk 0:02:20.1]} 11. e4 {[%clk
0:03:05.2]} 11... dxe4 {[%clk 0:02:18.8]} 12. dxe4 {[%clk 0:03:05.3]} 12... Qa8
{[%clk 0:02:14.9]} 13. Rfe1 {[%clk 0:03:05]} 13... c5 {[%clk 0:02:12.8]} 14.
Rad1 {[%clk 0:03:04.3]} 14... Bc6 {[%clk 0:02:09.7]} 15. Nh4 {[%clk 0:03:00.8]}
15... Ng4 {[%clk 0:01:54.7]} 16. h3 {[%clk 0:02:54.8]} 16... Bxh4 {[%clk
0:01:48.4]} 17. hxg4 {[%clk 0:02:53.9]} 17... Bf6 {[%clk 0:01:46.5]} 18. Rd6
{[%clk 0:02:47.2]} 18... Be5 {[%clk 0:01:44.4]} 19. Rd2 {[%clk 0:02:42.7]} 19...
Bd4 {[%clk 0:01:43.6]} 20. Nd1 {[%clk 0:02:33.4]} 20... e5 {[%clk 0:01:39.7]}
21. Bxd4 {[%clk 0:02:30.8]} 21... cxd4 {[%clk 0:01:36.8]} 22. Nb2 {[%clk
0:02:20.6]} 22... Re8 {[%clk 0:01:24.7]} 23. Nd3 {[%clk 0:02:19]} 23... Nc5
{[%clk 0:01:23.3]} 24. Nxc5 {[%clk 0:02:17.8]} 24... bxc5 {[%clk 0:01:22.9]} 25.
Qd3 {[%clk 0:02:17.8]} 25... a5 {[%clk 0:01:21.6]} 26. a3 {[%clk 0:02:14.6]}
26... Bd7 {[%clk 0:01:15.8]} 27. Bf3 {[%clk 0:02:09.1]} 27... Qc8 {[%clk
0:01:10.6]} 28. Qe2 {[%clk 0:02:08]} 28... Rb7 {[%clk 0:01:09.8]} 29. Rb1 {[%clk
0:02:07.3]} 29... Re6 {[%clk 0:01:06.4]} 30. Rdb2 {[%clk 0:02:02.1]} 30... Reb6
{[%clk 0:01:05.8]} 31. Kg2 {[%clk 0:01:58.7]} 31... Qb8 {[%clk 0:01:01.4]} 32.
Qd3 {[%clk 0:01:57.6]} 32... a4 {[%clk 0:00:58.5]} 33. Bd1 {[%clk 0:01:54.1]}
33... Kf8 {[%clk 0:00:43.5]} 34. f3 {[%clk 0:01:54.2]} 34... axb3 {[%clk
0:00:40.4]} 35. Rxb3 {[%clk 0:01:54.3]} 35... Rxb3 {[%clk 0:00:30.8]} 36. Rxb3
{[%clk 0:01:55.2]} 36... Rxb3 {[%clk 0:00:25.1]} 37. Qxb3 {[%clk 0:01:53.5]}
37... Qxb3 {[%clk 0:00:24.5]} 38. Bxb3 {[%clk 0:01:54.4]} 38... Ke7 {[%clk
0:00:24.4]} 39. Kf2 {[%clk 0:01:54.6]} 39... Kd6 {[%clk 0:00:24.5]} 40. Ke2
{[%clk 0:01:54.1]} 40... g5 {[%clk 0:00:24.1]} 41. Kd3 {[%clk 0:01:50.4]} 41...
Kc7 {[%clk 0:00:23.5]} 42. Bc2 {[%clk 0:01:41.5]} 42... Kb6 {[%clk 0:00:23.8]}
43. Bd1 {[%clk 0:01:33.6]} 43... Ka5 {[%clk 0:00:23.6]} 44. f4 {[%clk
0:01:16.7]} 44... f6 {[%clk 0:00:22.3]} 45. Kd2 {[%clk 0:01:01.5]} 45... Ba4
{[%clk 0:00:21.3]} 46. Be2 {[%clk 0:01:02]} 46... Bb3 {[%clk 0:00:21.2]} 47. Kc1
{[%clk 0:00:51.7]} 47... Ka4 {[%clk 0:00:20]} 48. fxe5 {[%clk 0:00:51.7]} 48...
fxe5 {[%clk 0:00:13.9]} 49. Kb2 {[%clk 0:00:51.8]} 49... h6 {[%clk 0:00:13.9]}
50. Bd3 {[%clk 0:00:51.6]} 50... Bd1 {[%clk 0:00:13.8]} 51. Ka2 {[%clk
0:00:47.7]} 51... Bxg4 {[%clk 0:00:13.5]} 52. Kb2 {[%clk 0:00:48.6]} 52... Bf3
{[%clk 0:00:13.3]} 53. Ka2 {[%clk 0:00:48.6]} 53... h5 {[%clk 0:00:13.1]} 54.
Kb2 {[%clk 0:00:48.5]} 54... Bg2 {[%clk 0:00:10.8]} 55. Be2 {[%clk 0:00:47.1]}
55... h4 {[%clk 0:00:10.6]} 56. gxh4 {[%clk 0:00:48]} 56... gxh4 {[%clk
0:00:11.5]} 57. Bg4 {[%clk 0:00:48.7]} 57... h3 {[%clk 0:00:12.1]} 58. Bxh3
{[%clk 0:00:49.6]} 58... Bxh3 {[%clk 0:00:12.8]} 59. Kc2 {[%clk 0:00:50.3]}
59... Bg2 {[%clk 0:00:13.3]} 60. Kd3 {[%clk 0:00:51.2]} 0-1

[Event "*** Titled Tuesday Blitz"]
[Site "Chess.com"]
[Date "2021.02.16"]
[Round "2"]
[White "SanchezKelvin"]
[Black "catzapto"]
[Result "1-0"]
[WhiteElo "2406"]
[BlackElo "2110"]
[TimeControl "180+1"]
[EndTime "10:19:11 PST"]
[Termination "SanchezKelvin won on time"]

1. d4 {[%clk 0:03:00.9]} 1... Nf6 {[%clk 0:02:59.8]} 2. c4 {[%clk 0:02:59.9]}
2... e6 {[%clk 0:02:59.7]} 3. Nf3 {[%clk 0:02:59.5]} 3... Bb4+ {[%clk 0:02:59]}
4. Nbd2 {[%clk 0:02:59]} 4... d5 {[%clk 0:02:58.4]} 5. e3 {[%clk 0:02:58.6]}
5... c6 {[%clk 0:02:57.8]} 6. Qc2 {[%clk 0:02:58.2]} 6... O-O {[%clk 0:02:56.6]}
7. a3 {[%clk 0:02:57.9]} 7... Bd6 {[%clk 0:02:53.4]} 8. Bd3 {[%clk 0:02:56]}
8... Nbd7 {[%clk 0:02:50.5]} 9. e4 {[%clk 0:02:53.1]} 9... dxe4 {[%clk
0:02:49.7]} 10. Nxe4 {[%clk 0:02:52.8]} 10... Nxe4 {[%clk 0:02:49.6]} 11. Bxe4
{[%clk 0:02:53.3]} 11... Nf6 {[%clk 0:02:49.5]} 12. Bd3 {[%clk 0:02:22.4]} 12...
c5 {[%clk 0:02:10]} 13. dxc5 {[%clk 0:02:21.1]} 13... Bxc5 {[%clk 0:02:09.1]}
14. b4 {[%clk 0:02:20.7]} 14... Be7 {[%clk 0:02:06.9]} 15. Bb2 {[%clk
0:02:20.1]} 15... h6 {[%clk 0:01:54.3]} 16. Rd1 {[%clk 0:02:16.8]} 16... Qe8
{[%clk 0:01:43.1]} 17. Ne5 {[%clk 0:02:10.9]} 17... Nd7 {[%clk 0:01:31.2]} 18.
Nf3 {[%clk 0:01:57.6]} 18... Nf6 {[%clk 0:01:30]} 19. O-O {[%clk 0:01:48.9]}
19... Bd7 {[%clk 0:01:29.5]} 20. Qc3 {[%clk 0:01:48.9]} 20... Qc8 {[%clk
0:01:18.4]} 21. Ne5 {[%clk 0:01:47.1]} 21... Ba4 {[%clk 0:01:11.5]} 22. Rd2
{[%clk 0:01:40.6]} 22... Ne8 {[%clk 0:01:11.1]} 23. Be4 {[%clk 0:01:27.4]} 23...
Bf6 {[%clk 0:01:09.8]} 24. Qf3 {[%clk 0:01:13.8]} 24... Qc7 {[%clk 0:01:00.5]}
25. Bxb7 {[%clk 0:01:01]} 25... Rb8 {[%clk 0:01:00.2]} 26. Bc6 {[%clk
0:01:00.6]} 26... Bxe5 {[%clk 0:00:56.8]} 27. Bxe5 {[%clk 0:00:54.6]} 27... Qxe5
{[%clk 0:00:24.2]} 28. Bxa4 {[%clk 0:00:52.5]} 28... Nf6 {[%clk 0:00:20.6]} 29.
Qe3 {[%clk 0:00:46.1]} 29... Qc7 {[%clk 0:00:19.3]} 30. Rc1 {[%clk 0:00:42.2]}
30... Ng4 {[%clk 0:00:18.3]} 31. Qg3 {[%clk 0:00:40.8]} 31... Qxg3 {[%clk
0:00:14.7]} 32. hxg3 {[%clk 0:00:41.7]} 32... Rfd8 {[%clk 0:00:11.7]} 33. Rxd8+
{[%clk 0:00:40]} 33... Rxd8 {[%clk 0:00:12.6]} 34. c5 {[%clk 0:00:38.1]} 34...
Ne5 {[%clk 0:00:11.1]} 35. c6 {[%clk 0:00:36.2]} 35... Rc8 {[%clk 0:00:08]} 36.
c7 {[%clk 0:00:30.5]} 36... Kf8 {[%clk 0:00:04.7]} 37. f4 {[%clk 0:00:30]} 37...
Nd3 {[%clk 0:00:03.5]} 38. Rc3 {[%clk 0:00:29.6]} 38... Nb2 {[%clk 0:00:03.1]}
39. Bd7 {[%clk 0:00:28.5]} 39... Nd1 {[%clk 0:00:03.1]} 40. Rc5 {[%clk
0:00:27.4]} 1-0